Workbook

Sheet Calculations
A3: Greenhouse size | B3: Length (ft) | C3: Width (ft) | D3: Area | E3: Usable space | F3: Growing area
B4: ='Variable Costs'!D12 -> 96 | C4: ='Variable Costs'!E12 -> 30 | D4: ='Variable Costs'!F12 -> 2880 | E4: ='Variable Costs'!G12 -> 0.8 | F4: ='Variable Costs'!H12 -> 2304
A6: Variable costs - Annual expenses
A7: Production expenses | B7: Object | C7: Description | D7: Price | E7: Unit | F7: Total cost | G7: Total
B8: Seeds | C8: Spinach | D8: 70 | E8: per 100M seeds | F8: =((144*F4)/100000)*D8 -> 232.2432
C9: Lettuce | D9: 150 | E9: per pound | F9: =(0.000375*D9)*F4 -> 129.6
C10: Mizuna | D10: 33 | E10: per pound | F10: =(0.00075*F4)*D10 -> 57.024
B11: Media | C11: Living acres compost | D11: 6.1 | E11: 1 cb ft | F11: =(D11*2*(((F4*0.25)/27)/0.074)) -> 3517.117117
B12: Media shipping | D12: 0.5 | E12: per mile | F12: 70
B13: Bags | C13: 3000 20 x 12" produce bags | D13: 55 | F13: 55
G14: =SUM(F8:F13) -> 4060.984317
A15: Labor | D15: 12.03 | E15: per hour
C16: tray filling | D16: =0.00875*F4 -> 20.16 | E16: hours | F16: =$D$15*D16 -> 242.5248
C17: planting | D17: =0.00641*F4 -> 14.76864 | E17: hours | F17: =$D$15*D17 -> 177.6667392
C18: harvesting | D18: =0.003*F4 -> 6.912 | E18: hours | F18: 83.15136
C19: watering | D19: =0.0146*F4 -> 33.6384 | E19: hours | F19: 404.669952
C20: packing | D20: =(0.29/(60))*F4 -> 11.136 | E20: hours | F20: 133.96608
C21: marketing | D21: 5 | E21: hours | F21: 60.15
A23: Total | G23: =SUM(F8:F21) -> 5163.113248
A27: Gross Income | B27: Crop | C27: Greenhouse temperature (F) | D27: Season | F27: Pounds per sq ft | G27: Pounds per greenhouse | H27: Price or Charge | J27: Total
B28: Lettuce | C28: 40 | D28: Fall Early | E28: =B28&"|"&C28&"|"&D28 -> Lettuce|40|Fall Early | F28: 0.32 | G28: =F28*$F$4 -> 737.28 | H28: ='Variable Costs'!$C$18 -> 10 | I28: per pound | J28: =G28*H28 -> 7372.8
B29: Lettuce | C29: 40 | D29: Fall Late | E29: =B29&"|"&C29&"|"&D29 -> Lettuce|40|Fall Late | F29: 0.41 | G29: =F29*$F$4 -> 944.64 | H29: ='Variable Costs'!$C$18 -> 10 | I29: per pound | J29: =G29*H29 -> 9446.4
B30: Lettuce | C30: 40 | D30: Spring Early | E30: Lettuce|40|Spring Early | F30: 0.4 | G30: 921.6 | H30: ='Variable Costs'!$C$18 -> 10 | I30: per pound | J30: 9216
B31: Lettuce | C31: 40 | D31: Spring Late | E31: Lettuce|40|Spring Late | F31: 0.34 | G31: 783.36 | H31: ='Variable Costs'!$C$18 -> 10 | I31: per pound | J31: 7833.6
B32: Lettuce | C32: 50 | D32: Fall Early | E32: Lettuce|50|Fall Early | F32: 0.31 | G32: 714.24 | H32: ='Variable Costs'!$C$18 -> 10 | I32: per pound | J32: 7142.4
B33: Lettuce | C33: 50 | D33: Fall Late | E33: Lettuce|50|Fall Late | F33: 0.43 | G33: 990.72 | H33: ='Variable Costs'!$C$18 -> 10 | I33: per pound | J33: =G33*H33 -> 9907.2
B34: Lettuce | C34: 50 | D34: Spring Early | E34: Lettuce|50|Spring Early | F34: 0.31 | G34: 714.24 | H34: ='Variable Costs'!$C$18 -> 10 | I34: per pound | J34: =G34*H34 -> 7142.4
B35: Lettuce | C35: 50 | D35: Spring Late | E35: Lettuce|50|Spring Late | F35: 0.56 | G35: 1290.24 | H35: ='Variable Costs'!$C$18 -> 10 | I35: per pound | J35: 12902.4
B36: Mizuna | C36: 40 | D36: Fall Early | E36: Mizuna|40|Fall Early | F36: 0.35 | G36: 806.4 | H36: ='Variable Costs'!$C$18 -> 10 | I36: per pound | J36: 8064
B37: Mizuna | C37: 40 | D37: Fall Late | E37: Mizuna|40|Fall Late | F37: 0.49 | G37: 1128.96 | H37: ='Variable Costs'!$C$18 -> 10 | I37: per pound | J37: 11289.6
B38: Mizuna | C38: 40 | D38: Spring Early | E38: Mizuna|40|Spring Early | F38: 0.14 | G38: 322.56 | H38: ='Variable Costs'!$C$18 -> 10 | I38: per pound | J38: 3225.6
B39: Mizuna | C39: 40 | D39: Spring Late | E39: Mizuna|40|Spring Late | F39: 0.18 | G39: 414.72 | H39: ='Variable Costs'!$C$18 -> 10 | I39: per pound | J39: 4147.2
B40: Mizuna | C40: 50 | D40: Fall Early | E40: Mizuna|50|Fall Early | F40: 0.14 | G40: 322.56 | H40: ='Variable Costs'!$C$18 -> 10 | I40: per pound | J40: 3225.6
B41: Mizuna | C41: 50 | D41: Fall Late | E41: Mizuna|50|Fall Late | F41: 0.19 | G41: 437.76 | H41: ='Variable Costs'!$C$18 -> 10 | I41: per pound | J41: 4377.6
B42: Mizuna | C42: 50 | D42: Spring Early | E42: Mizuna|50|Spring Early | F42: 0.09 | G42: 207.36 | H42: ='Variable Costs'!$C$18 -> 10 | I42: per pound | J42: 2073.6
B43: Mizuna | C43: 50 | D43: Spring Late | E43: Mizuna|50|Spring Late | F43: 0.14 | G43: 322.56 | H43: ='Variable Costs'!$C$18 -> 10 | I43: per pound | J43: 3225.6
B44: Spinach | C44: 40 | D44: Fall Early | E44: Spinach|40|Fall Early | F44: 0.29 | G44: 668.16 | H44: ='Variable Costs'!$C$18 -> 10 | I44: per pound | J44: 6681.6
B45: Spinach | C45: 40 | D45: Fall Late | E45: Spinach|40|Fall Late | F45: 0.29 | G45: 668.16 | H45: ='Variable Costs'!$C$18 -> 10 | I45: per pound | J45: 6681.6
B46: Spinach | C46: 40 | D46: Spring Early | E46: Spinach|40|Spring Early | F46: 0.29 | G46: 668.16 | H46: ='Variable Costs'!$C$18 -> 10 | I46: per pound | J46: 6681.6
B47: Spinach | C47: 40 | D47: Spring Late | E47: Spinach|40|Spring Late | F47: 0.29 | G47: 668.16 | H47: ='Variable Costs'!$C$18 -> 10 | I47: per pound | J47: 6681.6
B48: Spinach | C48: 50 | D48: Fall Early | E48: Spinach|50|Fall Early | F48: 0.23 | G48: 529.92 | H48: ='Variable Costs'!$C$18 -> 10 | I48: per pound | J48: 5299.2
B49: Spinach | C49: 50 | D49: Fall Late | E49: Spinach|50|Fall Late | F49: 0.23 | G49: 529.92 | H49: ='Variable Costs'!$C$18 -> 10 | I49: per pound | J49: 5299.2
B50: Spinach | C50: 50 | D50: Spring Early | E50: Spinach|50|Spring Early | F50: 0.23 | G50: 529.92 | H50: ='Variable Costs'!$C$18 -> 10 | I50: per pound | J50: 5299.2
B51: Spinach | C51: 50 | D51: Spring Late | E51: Spinach|50|Spring Late | F51: 0.23 | G51: 529.92 | H51: ='Variable Costs'!$C$18 -> 10 | I51: per pound | J51: 5299.2
A54: Fuel and Fixed costs
A55: Temperature set point (F) | B55: Season | C55: Planting | E55: Start week | F55: End week | G55: Weeks of greenhouse use | H55: Fuel Use (gal) | I55: Fuel cost ($3.23/gal) | J55: Ajusted total fixed costs
A56: Lettuce|40 | B56: Fall | C56: Early | D56: =A56&" "&B56&" "&C56 -> Lettuce|40 Fall Early | E56: 39 | F56: 44 | G56: =F56-E56 -> 5 | H56: 41.79566563 | I56: =H56*3.23 -> 135 | J56: =('Fixed Costs'!$K$53*(G56/(20+G56))) -> 944.5401692
A57: Lettuce|40 | B57: Fall | C57: Late | D57: Lettuce|40 Fall Late | E57: 44 | F57: 51 | G57: 7 | H57: 274.9226006 | I57: 888 | J57: =('Fixed Costs'!$K$53*(G57/(20+G57))) -> 1224.403923
A58: Lettuce|40 | B58: Winter | C58: Early | D58: Lettuce|40 Winter Early | E58: 4 | F58: 11 | G58: 7 | H58: 719.504644 | I58: 2324 | J58: =('Fixed Costs'!$K$53*(G58/(20))) -> 1652.945296
A59: Lettuce|40 | B59: Winter | C59: Late | D59: Lettuce|40 Winter Late | E59: 12 | F59: 16 | G59: 4 | H59: 145.5108359 | I59: 470 | J59: =('Fixed Costs'!$K$53*(G59/(20))) -> 944.5401692
A60: Lettuce|50 | B60: Fall | C60: Early | D60: Lettuce|50 Fall Early | E60: 39 | F60: 44 | G60: 5 | H60: 139.3188854 | I60: 450 | J60: =('Fixed Costs'!$K$53*(G60/(20+G60))) -> 944.5401692
A61: Lettuce|50 | B61: Fall | C61: Late | D61: Lettuce|50 Fall Late | E61: 44 | F61: 49 | G61: 5 | H61: 475.2321981 | I61: 1535 | J61: =('Fixed Costs'!$K$53*(G61/(20+G61))) -> 944.5401692
A62: Lettuce|50 | B62: Winter | C62: Early | D62: Lettuce|50 Winter Early | E62: 4 | F62: 10 | G62: 6 | H62: 900.3095975 | I62: 2908 | J62: =('Fixed Costs'!$K$53*(G62/(20))) -> 1416.810254
A63: Lettuce|50 | B63: Winter | C63: Late | D63: Lettuce|50 Winter Late | E63: 11 | F63: 16 | G63: 5 | H63: 593.8080495 | I63: 1918 | J63: =('Fixed Costs'!$K$53*(G63/(20))) -> 1180.675211
A64: Mizuna|40 | B64: Fall | C64: Early | D64: Mizuna|40 Fall Early | E64: 40 | F64: 43 | G64: 3 | H64: 34.05572755 | I64: 110 | J64: =('Fixed Costs'!$K$53*(G64/(20+G64))) -> 616.0044582
A65: Mizuna|40 | B65: Fall | C65: Late | D65: Mizuna|40 Fall Late | E65: 44 | F65: 49 | G65: 5 | H65: 196.9040248 | I65: 636 | J65: =('Fixed Costs'!$K$53*(G65/(20+G65))) -> 944.5401692
A66: Mizuna|40 | B66: Winter | C66: Early | D66: Mizuna|40 Winter Early | E66: 4 | F66: 10 | G66: 6 | H66: 610.5263158 | I66: 1972 | J66: =('Fixed Costs'!$K$53*(G66/(20))) -> 1416.810254
A67: Mizuna|40 | B67: Winter | C67: Late | D67: Mizuna|40 Winter Late | E67: 11 | F67: 14 | G67: 3 | H67: 149.2260062 | I67: 482 | J67: =('Fixed Costs'!$K$53*(G67/(20))) -> 708.4051269
A68: Mizuna|50 | B68: Fall | C68: Early | D68: Mizuna|50 Fall Early | E68: 40 | F68: 43 | G68: 3 | H68: 80.49535604 | I68: 260 | J68: =('Fixed Costs'!$K$53*(G68/(20+G68))) -> 616.0044582
A69: Mizuna|50 | B69: Fall | C69: Late | D69: Mizuna|50 Fall Late | E69: 44 | F69: 50 | G69: 6 | H69: 401.8575851 | I69: 1298 | J69: =('Fixed Costs'!$K$53*(G69/(20+G69))) -> 1089.854041
A70: Mizuna|50 | B70: Winter | C70: Early | D70: Mizuna|50 Winter Early | E70: 4 | F70: 9 | G70: 5 | H70: 798.7616099 | I70: 2580 | J70: =('Fixed Costs'!$K$53*(G70/(20))) -> 1180.675211
A71: Mizuna|50 | B71: Winter | C71: Late | D71: Mizuna|50 Winter Late | E71: 10 | F71: 13 | G71: 3 | H71: 353.250774 | I71: 1141 | J71: =('Fixed Costs'!$K$53*(G71/(20))) -> 708.4051269
A72: Spinach|40 | B72: Fall | C72: Early | D72: Spinach|40 Fall Early | E72: 39 | F72: 43 | G72: 4 | H72: 37.15170279 | I72: 120 | J72: =('Fixed Costs'!$K$53*(G72/(20+G72))) -> 787.1168077
A73: Spinach|40 | B73: Fall | C73: Late | D73: Spinach|40 Fall Late | E73: 44 | F73: 51 | G73: 7 | H73: 277.0897833 | I73: 895 | J73: =('Fixed Costs'!$K$53*(G73/(20+G73))) -> 1224.403923
A74: Spinach|40 | B74: Winter | C74: Early | D74: Spinach|40 Winter Early | E74: 4 | F74: 10 | G74: 6 | H74: 610.5263158 | I74: 1972 | J74: =('Fixed Costs'!$K$53*(G74/(20))) -> 1416.810254
A75: Spinach|40 | B75: Winter | C75: Late | D75: Spinach|40 Winter Late | E75: 11 | F75: 15 | G75: 4 | H75: 194.1176471 | I75: 627 | J75: =('Fixed Costs'!$K$53*(G75/20)) -> 944.5401692
A76: Spinach|50 | B76: Fall | C76: Early | D76: Spinach|50 Fall Early | E76: 39 | F76: 43 | G76: 4 | H76: 119.1950464 | I76: 385 | J76: =('Fixed Costs'!$K$53*(G76/(20+G76))) -> 787.1168077
A77: Spinach|50 | B77: Fall | C77: Late | D77: Spinach|50 Fall Late | E77: 44 | F77: 50 | G77: 6 | H77: 494.7368421 | I77: 1598 | J77: =('Fixed Costs'!$K$53*(G77/(20+G77))) -> 1089.854041
A78: Spinach|50 | B78: Winter | C78: Early | D78: Spinach|50 Winter Early | E78: 4 | F78: 9 | G78: 5 | H78: 830.3405573 | I78: 2682 | J78: =('Fixed Costs'!$K$53*(G78/(20))) -> 1180.675211
A79: Spinach|50 | B79: Winter | C79: Late | D79: Spinach|50 Winter Late | E79: 10 | F79: 13 | G79: 3 | H79: 353.250774 | I79: 1141 | J79: =('Fixed Costs'!$K$53*(G79/20)) -> 708.4051269

Sheet Credits
B2: Enterprise Budget for bench-top production of salad greens
B10: This enterprise budget was prepared at the University of New Hampshire with data collected from 2011- 2013 through funding provided by the following organizations and the Specialty Crop Block Grant "Feasibility of Using Existing Greenhouse Structures to Increase Production of Winter Vegetables and Herbs"
B36: This enterprise budget was developed by the following contributors:
B39: Claire Collie, graduate student, Claire.Collie@wildcats.unh.edu
B41: Michael R. Sciabarrasi, Extension Specialist, Agriculture Business Management, Mike.Sciabarrasi@unh.edu
B43: Becky Sideman, Extension Specialist, Sustainable Horticulture Production, Becky.Sideman@unh.edu
B45: Brian Krug, Extension Specialist, Greenhouse and Floriculture, brian.krug@unh.edu

Sheet Crop List
B2: Enterprise Budget for bench-top production of salad greens
B8: This enterprise budget aims to address the costs associated with producing salad greens grown on greenhouse bench-tops during the late fall and winter when New Hampshire markets often lack fresh produce. Greenhouses used for seasonal bedding plant production go largely unused between October and February. These greenhouses are usually equipped with growing benches that cannot be modified for traditional in-ground production. Bench-top production of salad greens has two economic aims: First, provide a source of revenue during the off-season using a crop that generates sales greater than heating, labor and variable costs, and second, spread the fixed costs of the greenhouse infrastructure over another crop making the overall business more profitable.
B15: How to use this budget: Use the top buttons to navigate between pages. Any white area outlined in black can be edited to reflect your personal growing area.
E18: Select a crop | G18: Crop list | J18: Select a | L18: Temperature
G19: Spinach | J19: growing temperature | L19: 40
G20: Lettuce | L20: 50
E21: Mizuna | G21: Mizuna | J21: 50
B24: We evaluated over 25 different salad greens in a bench-top system over a three year period. We picked three species to budget enterprise budgets for. These three greens represent the growth rate and habits of most cool temperature tolerant salad greens.

Sheet Variable Costs
B2: Enterprise Budget for bench-top production of salad greens
C7: Crop | D7: ='Crop List'!E21 -> Mizuna | F7: Greenhouse temperature | H7: ='Crop List'!J21 -> 50
B11: Greenhouse size | D11: Length (ft) | E11: Width (ft) | F11: Area | G11: Usable space | H11: Growing area
D12: ='Fixed Costs'!C13 -> 96 | E12: ='Fixed Costs'!D13 -> 30 | F12: =D12*E12 -> 2880 | G12: ='Fixed Costs'!F13 -> 0.8 | H12: =F12*G12 -> 2304
B16: Gross Income Estimated gross income is based on the yield of these salad greens grown in Durham, NH during the fall and winter of 2012 and 2013. Estimated yield values are from salad greens harvested between 4 -5 inches for lettuce and mizuna, and 3 - 5 inches for spinach.
C17: Price per pound | E17: Planting | F17: Yield (pounds per square foot) | G17: Yield (pounds per greenhouse) | H17: Total
C18: 10 | E18: Late September | F18: =VLOOKUP(K18,Calculations!$E$28:$F$51, 2) -> 0.14 | G18: =F18*$H$12 -> 322.56 | H18: =G18*$C$18 -> 3225.6 | J18: Fall Early | K18: =$D$7&"|"&$H$7&"|"&J18 -> Mizuna|50|Fall Early
E19: Late October | F19: =VLOOKUP(K19,Calculations!$E$28:$F$51, 2) -> 0.19 | G19: =F19*$H$12 -> 437.76 | H19: =G19*$C$18 -> 4377.6 | J19: Fall Late | K19: =$D$7&"|"&$H$7&"|"&J19 -> Mizuna|50|Fall Late
E20: Late January | F20: =VLOOKUP(K20,Calculations!$E$28:$F$51, 2) -> 0.09 | G20: =F20*$H$12 -> 207.36 | H20: =G20*$C$18 -> 2073.6 | J20: Spring Early | K20: =$D$7&"|"&$H$7&"|"&J20 -> Mizuna|50|Spring Early
E21: Late March | F21: =VLOOKUP(K21,Calculations!$E$28:$F$51, 2) -> 0.14 | G21: =F21*$H$12 -> 322.56 | H21: =G21*$C$18 -> 3225.6 | J21: Spring Late | K21: =$D$7&"|"&$H$7&"|"&J21 -> Mizuna|50|Spring Late
B25: Production expenses
C26: Object | D26: Description | E26: Price | F26: Unit | G26: Total cost | H26: Total
C27: Seeds | D27: ='Crop List'!E21 -> Mizuna | E27: =VLOOKUP(D27, Calculations!C8:F10, 2,FALSE) -> 33 | F27: =VLOOKUP('Crop List'!E21,Calculations!C8:F10,3,FALSE) -> per pound | G27: =VLOOKUP(D27,Calculations!C8:F10,4,FALSE) -> 57.024
C28: Media | D28: Living acres compost | E28: 6.1 | F28: 1 cb ft | G28: =(E28*2*(((H12*0.25)/27)/0.074)) -> 3517.117117
C29: Media shipping | E29: 0.5 | F29: per mile | G29: 70
C30: Bags | D30: 3000 20 x 12" produce bags | E30: 55 | G30: 55
H31: =SUM(G27:G30) -> 3699.141117
B35: Labor | D35: Rate per hour | E35: 12.03
D37: Activity | E37: Time spent | G37: Subtotal | H37: Total
D38: tray filling | E38: =0.00875*H12 -> 20.16 | F38: hours | G38: =$E$35*E38 -> 242.5248
D39: planting | E39: =0.00641*H12 -> 14.76864 | F39: hours | G39: 177.6667392
D40: harvesting | E40: =0.003*H12 -> 6.912 | F40: hours | G40: 83.15136
D41: watering | E41: =0.0146*H12 -> 33.6384 | F41: hours | G41: 404.669952
D42: packing | E42: =(0.29/(60))*H12 -> 11.136 | F42: hours | G42: 133.96608
D43: marketing | E43: 5 | F43: hours | G43: 60.15
H44: =SUM(G38:G43) -> 1102.128931
B48: Fuel use In this budget No. 2 heating oil is used as the source of fuel Fuel use for each crop of salad greens is based on Virtual Grower fuel use predictions for the length of time each crop is in the greenhouse. Portsmouth, NH was used as the location in Virtual Grower. Our empirical fuel use measurements were roughly half of those predicted by Virtual Grower. Growers should calculate their own heating costs for the most accurate representation of fuel costs. Virtual Grower can be downloaded from: http://www.ars.usda.gov/services/software/download.htm?softwareid=309
E49: Fuel cost per gallon | F49: 3.23
C51: Planting | D51: Start week | E51: End week | F51: Weeks in greenhouse | G51: Fuel Use (gal) | H51: Fuel cost
C52: Late September | D52: =VLOOKUP(L52,Calculations!D56:H79,2) -> 40 | E52: =VLOOKUP(L52,Calculations!D56:J79,3) -> 43 | F52: =E52-D52 -> 3 | G52: =VLOOKUP(L52,Calculations!D56:J79,5) -> 80.49535604 | H52: =G52*$F$49 -> 260 | J52: Fall | K52: Early | L52: =$D$7&"|"&$H$7&" "&J52&" "&K52 -> Mizuna|50 Fall Early
C53: Late October | D53: =VLOOKUP(L53,Calculations!D55:I79,2) -> 44 | E53: =VLOOKUP(L53,Calculations!D56:J79,3) -> 50 | F53: =E53-D53 -> 6 | G53: =VLOOKUP(L53,Calculations!D56:J79,5) -> 401.8575851 | H53: =G53*$F$49 -> 1298 | J53: Fall | K53: Late | L53: =$D$7&"|"&$H$7&" "&J53&" "&K53 -> Mizuna|50 Fall Late
C54: Late January | D54: =VLOOKUP(L54,Calculations!D55:I79,2) -> 4 | E54: =VLOOKUP(L54,Calculations!D56:J79,3) -> 9 | F54: 5 | G54: =VLOOKUP(L54,Calculations!D56:J79,5) -> 798.7616099 | H54: 2580 | J54: Winter | K54: Early | L54: =$D$7&"|"&$H$7&" "&J54&" "&K54 -> Mizuna|50 Winter Early
C55: Late March | D55: =VLOOKUP(L55,Calculations!D56:J79,2) -> 10 | E55: =VLOOKUP(L55,Calculations!D56:J79,3) -> 13 | F55: 3 | G55: =VLOOKUP(L55,Calculations!D56:J79,5) -> 353.250774 | H55: 1141 | J55: Winter | K55: Late | L55: =$D$7&"|"&$H$7&" "&J55&" "&K55 -> Mizuna|50 Winter Late

Sheet Fixed Costs
B2: Enterprise Budget for bench-top production of salad greens
C7: Crop | D7: ='Crop List'!E21 -> Mizuna | F7: Greenhouse temperature | H7: ='Crop List'!J21 -> 50
B12: Greenhouse size | C12: Length (ft) | D12: Width (ft) | E12: Area | F12: Usable space | G12: Growing area
C13: 96 | D13: 30 | E13: =C13*D13 -> 2880 | F13: 0.8 | G13: =E13*F13 -> 2304
B17: Greenhouse investment costs Fixed costs, or ownership costs are not tied directly to an enterprise budget. They are the costs that would exist even if the crop were not grown, so it is hard to assign expenses correctly. The prices used in this budget were collected in fall 2013. Depreciation is a way of matching investment costs with the period of time used. This budget uses straight-line deprecation and assumes no salvage value for investments at the end of their useful life. Interest on each investment cost is calculated by dividing investment costs by two and multiplying by 7%. This convention assumes a grower would, on average, have half of the purchase cost tied up in the investment over its useful life.
H23: Annual Charges
D24: Amount or description | E24: Price | G24: Cost | H24: Life - years | I24: Depreciation | J24: Interest (7%) | K24: Annualized
B25: Structure costs
C26: Frame | D26: Morton's 'H' Series Greenhouses | E26: 2560 | G26: =E26 -> 2560 | H26: 10 | I26: =G26*0.1 -> 256 | J26: =(G26/2)*0.07 -> 89.6 | K26: =SUM(I26:J26) -> 345.6
C27: End walls | D27: 44 Hi-Core¨ XL Glazing Construction Panels | E27: 38.9 | F27: per sheet | G27: =E27*44 -> 1711.6 | H27: 10 | I27: =G27*0.1 -> 171.16 | J27: =(G27/2)*0.07 -> 59.906 | K27: =SUM(I27:J27) -> 231.066
C28: Heaters | D28: 2 Heatmaster Oil Models 224000 BTU | E28: =4870 -> 4870 | F28: per unit | G28: =E28*2 -> 9740 | H28: 10 | I28: 974 | J28: =(G28/2)*0.07 -> 340.9 | K28: 1314.9
C29: Vents | D29: 2 Shaefer Powered Shutters - 48" WS480 | E29: =365 -> 365 | F29: per unit | G29: =2*E29 -> 730 | H29: 10 | I29: 73 | J29: 25.55 | K29: 98.55
C30: Fans | D30: 2 Schaefer Motorized Shutter-WS360 | E30: =300 -> 300 | F30: per unit | G30: =2*E30 -> 600 | H30: 10 | I30: 60 | J30: 21 | K30: 81
C31: HAF fans | D31: 6 GreenTek 12" HAF Fan | E31: =150.22 -> 150.22 | F31: per unit | G31: =6*E31 -> 901.32 | H31: 10 | I31: 90.132 | J31: 31.5462 | K31: 121.6782
C32: Inflation | D32: Outside Air Inflation System | E32: 147.68 | F32: per unit | G32: =E32 -> 147.68 | H32: 10 | I32: 14.768 | J32: 5.1688 | K32: 19.9368
B33: Plastic | C33: Cover | D33: 6 Mil greenhouse poly | E33: =429.5 -> 429.5 | G33: =E33 -> 429.5 | H33: 5 | I33: =G33*0.05 -> 21.475 | J33: 15.0325 | K33: 36.5075
D34: 6 mil Tufflite Infrared Greenhouse Films | E34: 606.89 | G34: =E34 -> 606.89 | H34: 5 | I34: =G34*0.05 -> 30.3445 | J34: 21.24115 | K34: 51.58565
C35: Floor | D35: Polypropylene Ground Cover | E35: =1.5*2*90 -> 270 | G35: =E35 -> 270 | H35: 5 | I35: 13.5 | J35: 9.45 | K35: 22.95
C36: Trays | D36: Dillen 13”x 17” nursery flat, 25/cn, | E36: 50.96 | F36: per 25 units | G36: =(E36/25)*(G13/1.625) -> 2890.1376 | H36: 5 | I36: 144.50688 | J36: 101.154816 | K36: 245.661696
C37: Benches | D37: EZ grow pro benches (4' x 8') | E37: 195 | F37: per bench | G37: =(G13/32)*E37 -> 14040 | H37: 10 | I37: =G37*0.1 -> 1404 | J37: 491.4 | K37: =SUM(I37:J37) -> 1895.4
B38: Misc. | C38: Scale | D38: EZ Weight PX | E38: 150 | G38: =E38 -> 150 | H38: 10 | I38: =G38*0.1 -> 15 | J38: 5.25 | K38: 20.25
C39: clippers/knife | D39: 2 Needle nose shears | E39: 27 | G39: =E39*2 -> 54 | H39: 5 | I39: =G39*0.05 -> 2.7 | J39: 1.89 | K39: 4.59
C40: Harvest bins | D40: 4, 7 gallon tubtrug | E40: 13 | G40: =E40*4 -> 52 | H40: 5 | I40: =G40*0.05 -> 2.6 | J40: 1.82 | K40: 4.42
C41: Seeder | D41: Vibro hand seeder | E41: 73 | G41: =E41 -> 73 | H41: 10 | I41: =G41*0.1 -> 7.3 | J41: 2.555 | K41: 9.855
C42: Washing | D42: Dynamic salad spinner | E42: 250 | G42: =E42 -> 250 | H42: 5 | I42: =G42*0.05 -> 12.5 | J42: 8.75 | K42: 21.25
C43: Greenhouse repairs | K43: 125
B44: Total | G44: =SUM(G26:G42) -> 35206.1276 | I44: =SUM(I26:I42) -> 3292.98638 | J44: =SUM(J26:J42) -> 1232.214466 | K44: =SUM(K26:K43) -> 4650.200846
B48: Land Investment | D48: Acres | E48: Price | G48: Cost | I48: Interest (4%) | J48: Taxes and insurance | K48: Annual cost
D49: 0.1 | E49: 5000 | F49: per acre | G49: =D49*E49 -> 500 | I49: =G49*0.04 -> 20 | J49: =(G49*0.1)+(G49*0.005) -> 52.5 | K49: =SUM(H49:J49) -> 72.5
B53: Total Annual investments | K53: =K49+K44 -> 4722.700846
B57: Adjusted fixed costs by seasonal planting The total investment cost above is adjusted to reflect just the number of weeks a crop of salad greens is in the greenhouse.
D59: Planting | E59: Start week | F59: End week | G59: Weeks in greenhouse | H59: Seasonal fixed costs
D60: Late September | E60: =VLOOKUP(N60,Calculations!D56:J79,2) -> 40 | F60: =VLOOKUP(N60,Calculations!D56:J79,3) -> 43 | G60: =F60-E60 -> 3 | H60: =('Fixed Costs'!K53*(G60/(20+G60))) -> 616.0044582 | L60: Fall | M60: Early | N60: =$D$7&"|"&$H$7&" "&L60&" "&M60 -> Mizuna|50 Fall Early
D61: Late October | E61: =VLOOKUP(N61,Calculations!D56:J79,2) -> 44 | F61: =VLOOKUP(N61,Calculations!D56:J79,3) -> 50 | G61: =F61-E61 -> 6 | H61: =('Fixed Costs'!K53*(G61/(20+G61))) -> 1089.854041 | L61: Fall | M61: Late | N61: =$D$7&"|"&$H$7&" "&L61&" "&M61 -> Mizuna|50 Fall Late
D62: Late January | E62: =VLOOKUP(N62,Calculations!D56:J79,2) -> 4 | F62: =VLOOKUP(N62,Calculations!D56:J79,3) -> 9 | G62: 5 | H62: =('Fixed Costs'!K53*(G62/(20))) -> 1180.675211 | L62: Winter | M62: Early | N62: =$D$7&"|"&$H$7&" "&L62&" "&M62 -> Mizuna|50 Winter Early
D63: Late March | E63: =VLOOKUP(N63,Calculations!D57:J88,2) -> 10 | F63: =VLOOKUP(N63,Calculations!D56:J79,3) -> 13 | G63: 3 | H63: =('Fixed Costs'!K53*(G63/(20))) -> 708.4051269 | L63: Winter | M63: Late | N63: =$D$7&"|"&$H$7&" "&L63&" "&M63 -> Mizuna|50 Winter Late

Sheet Outputs
B2: Enterprise Budget for bench-top production of salad greens
C7: Crop | D7: ='Crop List'!E21 -> Mizuna | F7: Greenhouse temperature | H7: ='Crop List'!J21 -> 50
B12: Output | C12: Planting | D12: Gross income | E12: Annual Expenses | F12: Fuel cost | G12: Operating interest | H12: Seasonal fixed costs | I12: Net returns | J12: Net income above variable costs
C13: Late September | D13: ='Variable Costs'!H18 -> 3225.6 | E13: ='Variable Costs'!$H$31+'Variable Costs'!$H$44 -> 4801.270048 | F13: ='Variable Costs'!H52 -> 260 | G13: =(F13+'Variable Costs'!$H$31)*0.5*('Fixed Costs'!G60/52)*0.07 -> 7.994419563 | H13: ='Fixed Costs'!H60 -> 616.0044582 | I13: =D13-(E13+H13+F13+G13) -> -2459.668926 | J13: =D13-(E13+F13+G13) -> -1843.664468
C14: Late October | D14: ='Variable Costs'!H19 -> 4377.6 | E14: ='Variable Costs'!$H$31+'Variable Costs'!$H$44 -> 4801.270048 | F14: ='Variable Costs'!H53 -> 1298 | G14: =(F14+'Variable Costs'!$H$31)*0.5*('Fixed Costs'!G61/52)*0.07 -> 20.1807622 | H14: ='Fixed Costs'!H61 -> 1089.854041 | I14: =D14-(E14+H14+F14+G14) -> -2831.704852 | J14: =D14-(E14+F14+G14) -> -1741.850811
C15: Late January | D15: ='Variable Costs'!H20 -> 2073.6 | E15: ='Variable Costs'!$H$31+'Variable Costs'!$H$44 -> 4801.270048 | F15: ='Variable Costs'!H54 -> 2580 | G15: =(F15+'Variable Costs'!$H$31)*0.5*('Fixed Costs'!G62/52)*0.07 -> 21.13172491 | H15: ='Fixed Costs'!H62 -> 1180.675211 | I15: =D15-(E15+H15+F15+G15) -> -6509.476985 | J15: =D15-(E15+F15+G15) -> -5328.801773
C16: Late March | D16: ='Variable Costs'!H21 -> 3225.6 | E16: ='Variable Costs'!$H$31+'Variable Costs'!$H$44 -> 4801.270048 | F16: ='Variable Costs'!H55 -> 1141 | G16: =(F16+'Variable Costs'!$H$31)*0.5*('Fixed Costs'!G63/52)*0.07 -> 9.773361871 | H16: ='Fixed Costs'!H63 -> 708.4051269 | I16: =D16-(E16+H16+F16+G16) -> -3434.848537 | J16: =D16-(E16+F16+G16) -> -2726.44341

Sheet Comparison Charts
B2: Enterprise Budget for bench-top production of salad greens
B8: The selling price of salad greens can change throughout the year, and can drastically change the potential income. The price of baby salad greens ranges from $8 to $15 per pound according to data collected by NOFA-NH and MOFGA in 2014. Here we show the net income above variable costs of all three salad greens at a range of prices per pound.
B12: Crop: Spinach | C12: Temperature: 50 | J12: Crop: Spinach | K12: Temperature: 40
B14: Price per pound | C14: 10 | D14: 11 | E14: 12 | F14: 13 | G14: 14 | H14: 15 | J14: Price per pound | K14: 10 | L14: 11 | M14: 12 | N14: 13 | O14: 14 | P14: 15
B15: Planting | J15: Planting
B16: Late September | C16: -73.75675686 | D16: 456.1632431 | E16: 986.0832431 | F16: 1516.003243 | G16: 2045.923243 | H16: 2575.843243 | J16: Late September | K16: 1574.356705 | L16: 2242.516705 | M16: 2910.676705 | N16: 3578.836705 | O16: 4246.996705 | P16: 4915.156705
B17: Late October | C17: -1297.389165 | D17: -767.469165 | E17: -237.549165 | F17: 292.370835 | G17: 822.290835 | H17: 1352.210835 | J17: Late October | K17: 787.6397271 | L17: 1455.799727 | M17: 2123.959727 | N17: 2792.119727 | O17: 3460.279727 | P17: 4128.439727
B18: Late January | C18: -2381.353922 | D18: -1851.433922 | E18: -1321.513922 | F18: -791.5939225 | G18: -261.6739225 | H18: 268.2460775 | J18: Late January | K18: -290.4995496 | L18: 377.6604504 | M18: 1045.82045 | N18: 1713.98045 | O18: 2382.14045 | P18: 3050.30045
B19: Late March | C19: -828.4164182 | D19: -298.4964182 | E19: 231.4235818 | F19: 761.3435818 | G19: 1291.263582 | H19: 1821.183582 | J19: Late March | K19: 1065.991705 | L19: 1734.151705 | M19: 2402.311705 | N19: 3070.471705 | O19: 3738.631705 | P19: 4406.791705
B23: Crop: Lettuce | C23: Temperature: 50 | J23: Crop: Lettuce | K23: Temperature: 40
B25: Price per pound | C25: 10 | D25: 11 | E25: 12 | F25: 13 | G25: 14 | H25: 15 | J25: Price per pound | K25: 10 | L25: 11 | M25: 12 | N25: 13 | O25: 14 | P25: 15
B26: Planting | J26: Planting
B27: Late September | C27: 1804.34625 | D27: 2518.58625 | E27: 3232.82625 | F27: 3947.06625 | G27: 4661.30625 | H27: 5375.54625 | J27: Late September | K27: 2350.806346 | L27: 3088.086346 | M27: 3825.366346 | N27: 4562.646346 | O27: 5299.926346 | P27: 6037.206346
B28: Late October | C28: 3480.494808 | D28: 4471.214808 | E28: 5461.934808 | F28: 6452.654808 | G28: 7443.374808 | H28: 8434.094808 | J28: Late October | K28: 3662.599515 | L28: 4607.239515 | M28: 5551.879515 | N28: 6496.519515 | O28: 7441.159515 | P28: 8385.799515
B29: Late January | C29: -666.421829 | D29: 47.81817102 | E29: 762.058171 | F29: 1476.298171 | G29: 2190.538171 | H29: 2904.778171 | J29: Late January | K29: 1989.433746 | L29: 2911.033746 | M29: 3832.633746 | N29: 4754.233746 | O29: 5675.833746 | P29: 6597.433746
B30: Late March | C30: 6091.405865 | D30: 7381.645865 | E30: 8671.885865 | F30: 9962.125865 | G30: 11252.36587 | H30: 12542.60587 | J30: Late March | K30: 2478.333944 | L30: 3261.693944 | M30: 4045.053944 | N30: 4828.413944 | O30: 5611.773944 | P30: 6395.133944
B34: Crop: Mizuna | C34: Temperature: 50 | J34: Crop: Mizuna | K34: Temperature: 40
B36: Price per pound | C36: 10 | D36: 11 | E36: 12 | F36: 13 | G36: 14 | H36: 15 | J36: Price per pound | K36: 10 | L36: 11 | M36: 12 | N36: 13 | O36: 14 | P36: 15
B37: Planting | J37: Planting
B38: Late September | C38: -1843.664468 | D38: -1521.104468 | E38: -1198.544468 | F38: -875.9844679 | G38: -553.4244679 | H38: -230.8644679 | J38: Late September | K38: 3145.038417 | L38: 3951.438417 | M38: 4757.838417 | N38: 5564.238417 | O38: 6370.638417 | P38: 7177.038417
B39: Late October | C39: -1741.850811 | D39: -1304.090811 | E39: -866.3308105 | F39: -428.5708105 | G39: 9.189189479 | H39: 446.9491895 | J39: Late October | K39: 5837.740534 | L39: 6966.700534 | M39: 8095.660534 | N39: 9224.620534 | O39: 10353.58053 | P39: 11482.54053
B40: Late January | C40: -5328.801773 | D40: -5121.441773 | E40: -4914.081773 | F40: -4706.721773 | G40: -4499.361773 | H40: -4292.001773 | J40: Late January | K40: -3570.572734 | L40: -3248.012734 | M40: -2925.452734 | N40: -2602.892734 | O40: -2280.332734 | P40: -1957.772734
B41: Late March | C41: -2726.44341 | D41: -2403.88341 | E41: -2081.32341 | F41: -1758.76341 | G41: -1436.20341 | H41: -1113.64341 | J41: Late March | K41: -1144.512737 | L41: -729.7927371 | M41: -315.0727371 | N41: 99.64726289 | O41: 514.3672629 | P41: 929.0872629
